fUST/lending_fUST_20240918
["ID","MTS","AMOUNT","RATE_DAILY","PERIOD"]
[338452775,1726647363273,500.0,0.00022999,60]
[338452776,1726647363467,1981.28,0.00022999,60]
[338452777,1726647364120,500.0,0.00022999,60]
[338452778,1726647364398,959.48,0.00022999,60]
[338452779,1726647365049,2158.59,0.00022999,60]
[338452780,1726647366096,500.0,0.00022999,60]
[338452781,1726647367047,500.0,0.00022999,60]
[338452783,1726647368040,500.0,0.00022999,60]
[338452784,1726647371698,500.0,0.00022999,60]
[338452785,1726647371938,7160.65,0.00022999,60]
[338452786,1726647372153,740.77,0.00022999,60]
[338452787,1726647375228,1528.93,0.00022999,60]
[338452788,1726647375668,1111.29,0.00022999,60]
[338452789,1726647376153,563.48677039,0.00022999,60]
[338452790,1726647376521,2280.41,0.00022999,60]
[338452791,1726647378658,500.0,0.00022999,60]
[338452792,1726647382473,500.0,0.00022999,60]
[338452793,1726647382654,557.64,0.00022999,60]
[338452794,1726647383139,981.1,0.00022999,60]
[338452795,1726647384219,500.0,0.00022999,60]
[338452796,1726647386104,500.0,0.00022999,60]
[338452797,1726647386597,730.25,0.00022999,60]
[338452798,1726647386755,1289.36,0.00022999,60]
[338452799,1726647386807,753.61,0.00022999,60]
[338452800,1726647387789,500.0,0.00022999,60]
[338452801,1726647387984,7589.91,0.00022999,60]
[338452802,1726647391736,1281.82,0.00022999,60]
[338452803,1726647393413,500.0,0.00022999,60]
[338452804,1726647393820,500.0,0.00022999,60]
[338452805,1726647393877,1636.42,0.00022999,60]
[338452806,1726647396295,1563.42,0.00022999,60]
[338452807,1726647398700,2171.95,0.00022999,60]
[338452808,1726647398902,500.0,0.00022999,60]
[338452809,1726647399196,1439.73,0.00022999,60]
[338452810,1726647402256,3406.6,0.00022999,60]
[338452811,1726647404518,1479.07,0.00022999,60]
[338452812,1726647406506,1937.35,0.00022999,60]
[338452813,1726647406678,1739.13,0.00022999,60]
[338452814,1726647406932,500.0,0.00022999,60]
[338452815,1726647407135,1270.58,0.00022999,60]
[338452816,1726647407741,1605.74,0.00022999,60]
[338452817,1726647409657,1014.33,0.00022999,60]
[338452818,1726647409728,1183.22,0.00022999,60]
[338452819,1726647411450,2147.87,0.00022999,60]
[338452820,1726647414362,626.53,0.00022999,60]
[338452821,1726647414907,500.0,0.00022999,60]
[338452823,1726647415494,562.95,0.00022999,60]
[338452824,1726647415587,500.0,0.00022999,60]
[338452825,1726647417471,704.79,0.00022999,60]
[338452826,1726647419399,500.0,0.00022999,60]
[338452827,1726647419600,500.0,0.00022999,60]
[338452828,1726647420589,791.56,0.00022999,60]
[338452829,1726647421345,1792.56,0.00022999,60]
[338452830,1726647422365,500.0,0.00022999,60]
[338452831,1726647424382,500.0,0.00022999,60]
[338452832,1726647424438,942.66,0.00022999,60]
[338452833,1726647428231,572.83,0.00022999,60]
[338452834,1726647430287,1546.4,0.00022999,60]
[338452835,1726647430336,500.0,0.00022999,60]
[338452836,1726647430390,500.0,0.00022999,60]
[338452837,1726647434828,501.58346017,0.00022999,60]
[338452838,1726647435850,500.0,0.00022999,60]
[338452839,1726647435913,6311.96,0.00022999,60]
[338452840,1726647436056,500.0,0.00022999,60]
[338452841,1726647436176,500.0,0.00022999,60]
[338452842,1726647436359,1075.57,0.00022999,60]
[338452843,1726647436809,1550.37,0.00022999,60]
[338452844,1726647436863,500.0,0.00022999,60]
[338452845,1726647437259,500.0,0.00022999,60]
[338452846,1726647438422,253.98074787,0.00022999,60]
[338452847,1726647438533,500.0,0.00022999,60]
[338452848,1726647438856,500.67567913,0.00022999,60]
[338452849,1726647439170,500.0,0.00022999,60]
[338452850,1726647441651,792.84,0.00022999,60]
[338452851,1726647443047,1687.8,0.00022999,60]
[338452852,1726647443098,1730.15,0.00022999,60]
[338452853,1726647443841,500.0,0.00022999,60]
[338452854,1726647445528,500.0,0.00022999,60]
[338452855,1726647445580,1079.41,0.00022999,60]
[338452857,1726647447087,2114.51,0.00022999,60]
[338452858,1726647447505,486.38983858,0.00022999,60]
[338452859,1726647447859,500.0,0.00022999,60]
[338452860,1726647448421,926.13,0.00022999,60]
[338452861,1726647449429,500.0,0.00022999,60]
[338452862,1726647449897,748.01,0.00022999,60]
[338452863,1726647450563,504.7,0.00022999,60]
[338452864,1726647451040,1178.52,0.00022999,60]
[338452865,1726647451402,500.0,0.00022999,60]
[338452866,1726647452150,1600.27,0.00022999,60]
[338452867,1726647455374,500.0,0.00022999,60]
[338452868,1726647456092,1610.77,0.00022999,60]
[338452869,1726647456553,151.6095182,0.00022999,60]
[338452870,1726647456987,2136.1,0.00022999,60]
[338452871,1726647457133,1327.07,0.00022999,60]
[338452873,1726647457241,899.95,0.00022999,60]
[338452875,1726647457836,1738.71,0.00022999,60]
[338452876,1726647457890,763.95,0.00022999,60]
[338452877,1726647458311,500.0,0.00022999,60]
[338452878,1726647458832,500.0,0.00022999,60]
[338452879,1726647459887,500.0,0.00022999,60]
[338452880,1726647462641,500.0,0.00022999,60]
[338452881,1726647463101,500.0,0.00022999,60]
[338452882,1726647463545,500.0,0.00022999,60]
[338452883,1726647467327,533.81,0.00022999,60]
[338452884,1726647467393,500.0,0.00022999,60]
[338452885,1726647468914,1646.28,0.00022999,60]
[338452886,1726647469018,500.0,0.00022999,60]
[338452887,1726647469798,417.51460527,0.00022999,60]
[338452888,1726647470088,500.0,0.00022999,60]
[338452889,1726647470421,500.0,0.00022999,60]
[338452890,1726647470550,6999.63,0.00022999,60]
[338452891,1726647470830,500.0,0.00022999,60]
[338452892,1726647471156,500.0,0.00022999,60]
[338452893,1726647471726,500.0,0.00022999,60]
[338452894,1726647471828,891.05,0.00022999,60]
[338452895,1726647471886,1543.0,0.00022999,60]
[338452896,1726647472544,1520.18,0.00022999,60]
[338452897,1726647472601,1114.62,0.00022999,60]
[338452898,1726647472647,500.0,0.00022999,60]
[338452899,1726647472713,500.0,0.00022999,60]
[338452900,1726647474216,16053.78,0.00022999,60]
[338452901,1726647476246,1636.07,0.00022999,60]
[338452902,1726647477469,1540.95,0.00022999,60]
[338452903,1726647477619,729.63,0.00022999,60]
[338452904,1726647478541,500.0,0.00022999,60]
[338452905,1726647478858,440.14275846,0.00022999,60]
[338452906,1726647479098,500.0,0.00022999,60]
[338452907,1726647479269,1731.0,0.00022999,60]
[338452908,1726647479371,3438.9,0.00022999,60]
[338452909,1726647479489,500.0,0.00022999,60]
[338452910,1726647479750,1359.38,0.00022999,60]
[338452911,1726647480805,606.75,0.00022999,60]
[338452912,1726647481282,762.77,0.00022999,60]
[338452913,1726647481896,533.56,0.00022999,60]
[338452914,1726647482021,500.0,0.00022999,60]
[338452915,1726647484399,1804.44,0.00022999,60]
[338452916,1726647487346,2586.48,0.00022999,60]
[338452917,1726647487770,612.72,0.00022999,60]
[338452918,1726647488195,1009.67,0.00022999,60]
[338452919,1726647491651,670.44,0.00022999,60]
[338452920,1726647491735,500.0,0.00022999,60]
[338452921,1726647491964,500.0,0.00022999,60]
[338452922,1726647492411,500.0,0.00022999,60]
[338452923,1726647492968,500.0,0.00022999,60]
[338452924,1726647493722,1761.46,0.00022999,60]
[338452925,1726647494087,500.0,0.00022999,60]
[338452926,1726647497282,1550.01,0.00022999,60]
[338452927,1726647497432,547.55,0.00022999,60]
[338452928,1726647497605,500.0,0.00022999,60]
[338452929,1726647497650,500.0,0.00022999,60]
[338452930,1726647497967,500.0,0.00022999,60]
[338452931,1726647498755,654.11,0.00022999,60]
[338452932,1726647498862,500.0,0.00022999,60]
[338452933,1726647499177,1784.58,0.00022999,60]
[338452934,1726647499613,518.54,0.00022999,60]
[338452935,1726647501086,1580.4,0.00022999,60]
[338452936,1726647502654,500.0,0.00022999,60]
[338452937,1726647503368,1949.99,0.00022999,60]
[338452938,1726647503471,500.0,0.00022999,60]
[338452939,1726647504017,500.0,0.00022999,60]
[338452940,1726647504427,500.0,0.00022999,60]
[338452941,1726647504479,544.87,0.00022999,60]
[338452942,1726647504945,948.64,0.00022999,60]
[338452944,1726647506495,500.0,0.00022999,60]
[338452945,1726647507691,2179.55,0.00022999,60]
[338452946,1726647508530,500.0,0.00022999,60]
[338452947,1726647509203,500.0,0.00022999,60]
[338452948,1726647509683,595.41,0.00022999,60]
[338452949,1726647510196,500.0,0.00022999,60]
[338452950,1726647511165,569.52,0.00022999,60]
[338452951,1726647512823,484.66903566,0.00022999,60]
[338452952,1726647513250,500.0,0.00022999,60]
[338452953,1726647513614,500.0,0.00022999,60]
[338452954,1726647514693,1144.33,0.00022999,60]
[338452955,1726647514770,500.0,0.00022999,60]
[338452956,1726647515158,583.17,0.00022999,60]
[338452957,1726647517505,500.0,0.00022999,60]
[338452958,1726647518194,500.0,0.00022999,60]
[338452959,1726647518693,604.84,0.00022999,60]
[338452960,1726647520554,522.91,0.00022999,60]
[338452961,1726647521723,500.0,0.00022999,60]
[338452962,1726647522513,500.0,0.00022999,60]
[338452963,1726647526191,500.0,0.00022999,60]
[338452964,1726647528375,1019.89,0.00022999,60]
[338452965,1726647528978,500.0,0.00022999,60]
[338452966,1726647529753,500.0,0.00022999,60]
[338452967,1726647533218,500.0,0.00022999,60]
[338452968,1726647535033,1529.48,0.00022999,60]
[338452969,1726647535714,1104.14,0.00022999,60]
[338452970,1726647538301,969.15,0.00022999,60]
[338452971,1726647538498,3124.91,0.00022999,60]
[338452972,1726647538711,500.0,0.00022999,60]
[338452973,1726647540418,500.0,0.00022999,60]
[338452974,1726647542229,500.0,0.00022999,60]
[338452975,1726647543042,500.0,0.00022999,60]
[338452976,1726647546041,500.0,0.00022999,60]
[338452977,1726647550675,749.43,0.00022999,60]
[338452978,1726647551270,500.0,0.00022999,60]
[338452979,1726647553233,515.93,0.00022999,60]
[338452980,1726647553444,500.0,0.00022999,60]
[338452981,1726647555811,500.0,0.00022999,60]
[338452982,1726647558822,500.0,0.00022999,60]
[338452983,1726647560431,4746.4,0.00022999,60]
[338452984,1726647561001,1626.33,0.00022999,60]
[338452985,1726647562588,500.0,0.00022999,60]
[338452986,1726647562632,518.63,0.00022999,60]
[338452987,1726647562781,635.26,0.00022999,60]
[338452988,1726647563214,500.0,0.00022999,60]
[338452989,1726647563418,500.0,0.00022999,60]
[338452990,1726647566278,3499.55,0.00022999,60]
[338452991,1726647567508,1648.89,0.00022999,60]
[338452992,1726647570648,4062.16,0.00022999,60]
[338452993,1726647570953,1119.79,0.00022999,60]
[338452994,1726647571211,500.0,0.00022999,60]
[338452995,1726647571823,500.0,0.00022999,60]
[338452996,1726647572673,502.85,0.00022999,60]
[338452997,1726647573632,500.0,0.00022999,60]
[338452998,1726647576095,500.0,0.00022999,60]
[338452999,1726647577058,919.5,0.00022999,60]
[338453000,1726647577894,500.0,0.00022999,60]
[338453001,1726647579101,1337.28,0.00022999,60]
[338453002,1726647579157,2436.49,0.00022999,60]
[338453003,1726647579906,500.0,0.00022999,60]
[338453004,1726647583056,3034.06,0.00022999,60]
[338453005,1726647583103,539.91,0.00022999,60]
[338453006,1726647583652,415.79899641,0.00022999,60]
[338453007,1726647584701,2562.43,0.00022999,60]
[338453008,1726647586413,1381.58,0.00022999,60]
[338453009,1726647586925,500.0,0.00022999,60]
[338453010,1726647588853,1465.22,0.00022999,60]
[338453011,1726647588927,500.0,0.00022999,60]
[338453012,1726647589430,972.06,0.00022999,60]
[338453013,1726647590279,500.0,0.00022999,60]
[338453014,1726647590414,500.0,0.00022999,60]
[338453015,1726647592019,500.0,0.00022999,60]
[338453016,1726647592196,3716.08,0.00022999,60]
[338453017,1726647592419,564.61,0.00022999,60]
[338453018,1726647592473,2242.11,0.00022999,60]
[338453019,1726647592658,500.0,0.00022999,60]
[338453020,1726647594533,455.29247255,0.00022999,60]
[338453021,1726647597935,2006.33,0.00022999,60]
[338453022,1726647599007,500.0,0.00022999,60]
[338453023,1726647599081,738.71,0.00022999,60]
[338453024,1726647599425,722.21,0.00022999,60]
[338453025,1726647601327,329.38829752,0.00022999,60]
[338453026,1726647602349,6862.29,0.00022999,60]
[338453027,1726647602450,500.0,0.00022999,60]
[338453028,1726647603094,1960.49,0.00022999,60]
[338453029,1726647603165,500.0,0.00022999,60]
[338453030,1726647604551,170.0,0.00023,60]
[338453031,1726647606773,592.57,0.00022999,60]
[338453032,1726647610344,500.0,0.00022999,60]
[338453033,1726647611757,1748.06,0.00022999,60]
[338453034,1726647612357,500.0,0.00022999,60]
[338453035,1726647612705,1666.66,0.00022999,60]
[338453036,1726647613164,500.0,0.00022999,60]
[338453037,1726647613233,1603.67,0.00022999,60]
[338453038,1726647614068,500.0,0.00022999,60]
[338453039,1726647614194,940.22,0.00022999,60]
[338453040,1726647614616,500.0,0.00022999,60]
[338453041,1726647615975,500.0,0.00022999,60]
[338453042,1726647616250,1038.42,0.00022999,60]
[338453043,1726647616385,2185.4,0.00022999,60]
[338453044,1726647617891,500.0,0.00022999,60]
[338453045,1726647620017,3152.84,0.00022999,60]
[338453046,1726647621204,500.0,0.00022999,60]
[338453047,1726647621646,500.0,0.00022999,60]
[338453048,1726647622252,500.0,0.00022999,60]
[338453049,1726647622911,500.0,0.00022999,60]
[338453050,1726647623582,839.18,0.00022999,60]
[338453052,1726647624983,1139.02,0.00022999,60]
[338453053,1726647625468,500.0,0.00022999,60]
[338453054,1726647626090,500.0,0.00022999,60]
[338453055,1726647627085,2081.45,0.00022999,60]
[338453056,1726647627622,500.0,0.00022999,60]
[338453057,1726647628416,500.0,0.00022999,60]
[338453058,1726647629380,500.0,0.00022999,60]
[338453059,1726647630118,7273.67,0.00022999,60]
[338453060,1726647630715,2219.81,0.00022999,60]
[338453061,1726647630782,1782.05,0.00022999,60]
[338453062,1726647630834,647.04,0.00022999,60]
[338453063,1726647631201,1449.89,0.00022999,60]
[338453064,1726647632571,2564.2,0.00023,60]
[338453065,1726647632742,500.0,0.00022999,60]
[338453066,1726647634547,500.0,0.00022999,60]
[338453067,1726647634713,500.0,0.00022999,60]
[338453069,1726647634928,500.0,0.00022999,60]
[338453070,1726647634979,623.01719975,0.00022999,60]
[338453071,1726647636207,500.0,0.00022999,60]
[338453072,1726647637380,1168.82,0.00022999,60]
[338453073,1726647638307,500.0,0.00022999,60]
[338453074,1726647639042,548.06086789,0.00022999,60]
[338453075,1726647641417,500.0,0.00022999,60]
[338453076,1726647642581,500.0,0.00022999,60]
[338453077,1726647642664,7802.29,0.00022999,60]
[338453078,1726647643064,500.0,0.00022999,60]
[338453079,1726647644113,500.0,0.00022999,60]
[338453080,1726647644289,500.0,0.00022999,60]
[338453081,1726647644856,500.0,0.00022999,60]
[338453082,1726647645608,500.0,0.00022999,60]
[338453083,1726647645775,435.51597523,0.00022999,60]
[338453084,1726647646438,500.0,0.00022999,60]
[338453085,1726647648081,500.0,0.00022999,60]
[338453086,1726647649004,500.0,0.00022999,60]
[338453087,1726647650004,919.53,0.00022999,60]
[338453088,1726647650339,507.83,0.00022999,60]
[338453089,1726647651408,3264.66,0.00022999,60]
[338453090,1726647651783,500.0,0.00022999,60]
[338453091,1726647651835,540.66,0.00022999,60]
[338453092,1726647652994,500.0,0.00022999,60]
[338453093,1726647653582,500.0,0.00022999,60]
[338453094,1726647653674,732.12,0.00022999,60]
[338453095,1726647655689,976.59,0.00022999,60]
[338453096,1726647659871,1663.33,0.00022999,60]
[338453097,1726647660282,500.83662888,0.00022999,60]
[338453098,1726647660792,1498.27,0.00022999,60]
[338453099,1726647661053,1282.11,0.00022999,60]
[338453100,1726647661533,849.09,0.00022999,60]
[338453101,1726647661667,767.97,0.00022999,60]
[338453102,1726647662342,1058.07,0.00022999,60]
[338453103,1726647662449,500.0,0.00022999,60]
[338453104,1726647666875,500.0,0.00022999,60]
[338453105,1726647667207,1856.63,0.00022999,60]
[338453106,1726647667264,500.0,0.00022999,60]
[338453107,1726647667403,500.0,0.00022999,60]
[338453108,1726647667746,500.0,0.00022999,60]
[338453109,1726647668766,1216.96,0.00022999,60]
[338453110,1726647669644,1030.75,0.00022999,60]
[338453111,1726647670453,534.9,0.00022999,60]
[338453112,1726647671027,1898.72,0.00022999,60]
[338453113,1726647671929,500.0,0.00022999,60]
[338453114,1726647674115,500.0,0.00022999,60]
[338453115,1726647674164,500.0,0.00022999,60]
[338453116,1726647674313,500.0,0.00022999,60]
[338453117,1726647674735,500.0,0.00022999,60]
[338453118,1726647674875,500.0,0.00022999,60]
[338453119,1726647675123,548.96,0.00022999,60]
[338453120,1726647675184,500.0,0.00022999,60]
[338453121,1726647675588,500.0,0.00022999,60]
[338453122,1726647680233,887.54,0.00022999,60]
[338453123,1726647681170,1691.62,0.00022999,60]
[338453124,1726647681626,699.22,0.00022999,60]
[338453125,1726647681767,500.0,0.00022999,60]
[338453126,1726647682226,732.5,0.00022999,60]
[338453127,1726647683140,500.0,0.00022999,60]
[338453128,1726647683874,500.0,0.00022999,60]
[338453129,1726647684553,500.0,0.00022999,60]
[338453130,1726647684771,1164.57,0.00022999,60]
[338453131,1726647685902,500.0,0.00022999,60]
[338453132,1726647686031,570.80458376,0.00022999,60]
[338453133,1726647686079,500.0,0.00022999,60]
[338453134,1726647686575,500.0,0.00022999,60]
[338453135,1726647688044,680.34,0.00022999,60]
[338453136,1726647689197,1658.06,0.00022999,60]
[338453137,1726647689966,500.0,0.00022999,60]
[338453138,1726647690135,1431.0,0.00022999,60]
[338453139,1726647690421,2131.11,0.00022999,60]
[338453140,1726647690689,1617.47,0.00022999,60]
[338453141,1726647691621,587.19,0.00022999,60]
[338453142,1726647696784,500.0,0.00022999,60]
[338453143,1726647697473,500.0,0.00022999,60]
[338453144,1726647698892,500.0,0.00022999,60]
[338453145,1726647698951,500.0,0.00022999,60]
[338453146,1726647699446,691.87,0.00022999,60]
[338453147,1726647699527,1000.0,0.00022999,60]
[338453148,1726647699993,500.0,0.00022999,60]
[338453149,1726647701507,1209.54,0.00022999,60]
[338453150,1726647701671,500.0,0.00022999,60]
[338453151,1726647702004,500.0,0.00022999,60]
[338453152,1726647702556,500.0,0.00022999,60]
[338453153,1726647703350,540.54,0.00022999,60]
[338453154,1726647703410,500.0,0.00022999,60]
[338453155,1726647705425,1381.77,0.00022999,60]
[338453156,1726647707507,909.12,0.00022999,60]
[338453157,1726647709008,511.56,0.00022999,60]
[338453158,1726647710893,500.0,0.00022999,60]
[338453159,1726647711620,1666.27,0.00022999,60]
[338453160,1726647712131,500.0,0.00022999,60]
[338453161,1726647712410,1342.3,0.00022999,60]
[338453162,1726647712471,2494.45,0.00022999,60]
[338453163,1726647715144,500.0,0.00022999,60]
[338453164,1726647715254,500.0,0.00022999,60]
[338453165,1726647715317,500.0,0.00022999,60]
[338453166,1726647717132,1061.12,0.00022999,60]
[338453167,1726647717333,755.21,0.00022999,60]
[338453168,1726647719521,6707.98,0.00022999,60]
[338453169,1726647719917,1096.65,0.00022999,60]
[338453170,1726647721322,500.0,0.00022999,60]
[338453171,1726647723685,500.0,0.00022999,60]
[338453172,1726647724412,500.0,0.00022999,60]
[338453173,1726647725661,778.06,0.00022999,60]
[338453174,1726647726802,1478.71,0.00022999,60]
[338453175,1726647726868,1196.92,0.00022999,60]
[338453176,1726647726963,500.0,0.00022999,60]
[338453177,1726647729222,500.0,0.00022999,60]
[338453178,1726647729274,2044.53,0.00022999,60]
[338453179,1726647729804,1729.25,0.00022999,60]
[338453180,1726647731792,3932.26,0.00022999,60]
[338453181,1726647733358,3295.61,0.00022999,60]
[338453182,1726647734244,500.0,0.00022999,60]
[338453183,1726647734700,500.0,0.00022999,60]
[338453184,1726647734814,1485.43,0.00022999,60]
[338453185,1726647735751,500.0,0.00022999,60]
[338453186,1726647735880,1538.84,0.00022999,60]
[338453187,1726647737751,500.0,0.00022999,60]
[338453188,1726647738720,240.96730401,0.00022999,60]
[338453189,1726647738956,500.0,0.00022999,60]
[338453190,1726647739140,549.83,0.00022999,60]
[338453191,1726647741553,730.16,0.00022999,60]
[338453192,1726647742627,500.0,0.00022999,60]
[338453193,1726647743128,500.0,0.00022999,60]
[338453194,1726647744342,524.73,0.00022999,60]
[338453195,1726647744660,500.0,0.00022999,60]
[338453196,1726647745674,500.0,0.00022999,60]
[338453197,1726647745735,511.33,0.00022999,60]
[338453198,1726647745939,536.15,0.00022999,60]
[338453199,1726647746073,500.0,0.00022999,60]
[338453200,1726647747965,500.0,0.00022999,60]
[338453201,1726647748033,1514.55,0.00022999,60]
[338453202,1726647749323,500.0,0.00022999,60]
[338453203,1726647750506,718.2,0.00022999,60]
[338453204,1726647751843,500.0,0.00022999,60]
[338453205,1726647752175,500.0,0.00022999,60]
[338453206,1726647752250,564.53550683,0.00022999,60]
[338453207,1726647752306,1098.59,0.00022999,60]
[338453208,1726647752641,1710.22,0.00022999,60]
[338453209,1726647754363,620.08,0.00022999,60]
[338453210,1726647754685,1546.61,0.00022999,60]
[338453211,1726647755325,500.0,0.00022999,60]
[338453212,1726647755747,540.1,0.00022999,60]
[338453213,1726647756084,501.12,0.00022999,60]
[338453214,1726647756144,500.0,0.00022999,60]
[338453215,1726647756231,744.88,0.00022999,60]
[338453216,1726647756505,500.0,0.00022999,60]
[338453217,1726647756658,809.21,0.00022999,60]
[338453218,1726647757556,545.79,0.00022999,60]
[338453219,1726647759214,1481.97,0.00022999,60]
[338453220,1726647760168,522.17,0.00022999,60]
[338453221,1726647760859,1558.56,0.00022999,60]
[338453222,1726647760967,500.0,0.00022999,60]
[338453223,1726647761515,500.0,0.00022999,60]
[338453224,1726647761964,500.0,0.00022999,60]
[338453225,1726647764770,502.74197189,0.00022999,60]
[338453226,1726647765370,500.0,0.00022999,60]
[338453227,1726647765446,879.9,0.00022999,60]
[338453228,1726647765623,500.0,0.00022999,60]
[338453229,1726647767033,500.0,0.00022999,60]
[338453230,1726647767384,534.55,0.00022999,60]
[338453231,1726647767522,500.0,0.00022999,60]
[338453232,1726647769876,1302.74,0.00022999,60]
[338453233,1726647770367,500.0,0.00022999,60]
[338453234,1726647770725,500.0,0.00022999,60]
[338453235,1726647774121,500.0,0.00022999,60]
[338453236,1726647774266,325.52941393,0.00022999,60]
[338453237,1726647775118,2111.42,0.00022999,60]
[338453238,1726647776862,576.24,0.00022999,60]
[338453239,1726647776913,979.23,0.00022999,60]
[338453240,1726647779481,500.0,0.00022999,60]
[338453241,1726647782398,2003.52,0.00022999,60]
[338453242,1726647783754,1986.05,0.00022999,60]
[338453243,1726647784239,500.0,0.00022999,60]
[338453244,1726647784417,500.0,0.00022999,60]
[338453245,1726647784536,500.0,0.00022999,60]
[338453246,1726647784587,2907.64,0.00022999,60]
[338453247,1726647786194,1533.6,0.00022999,60]
[338453248,1726647787026,522.93,0.00022999,60]
[338453249,1726647787362,565.55,0.00022999,60]
[338453250,1726647788302,2271.34,0.00022999,60]
[338453251,1726647788426,955.92,0.00022999,60]
[338453252,1726647788622,888.42,0.00022999,60]
[338453253,1726647790608,500.0,0.00022999,60]
[338453254,1726647790939,500.0,0.00022999,60]
[338453255,1726647791909,559.79,0.00022999,60]
[338453256,1726647796425,498.78728021,0.00022999,60]
[338453257,1726647798062,966.18,0.00022999,60]
[338453258,1726647798631,500.0,0.00022999,60]
[338453259,1726647798873,500.0,0.00022999,60]
[338453260,1726647799442,1526.36,0.00022999,60]
[338453261,1726647799513,2904.33,0.00022999,60]
[338453262,1726647800170,500.0,0.00022999,60]
[338453263,1726647800255,500.0,0.00022999,60]
[338453264,1726647801152,896.39,0.00022999,60]
[338453265,1726647802438,693.57,0.00022999,60]
[338453266,1726647803416,1017.8,0.00022999,60]
[338453267,1726647804091,3497.83,0.00022999,60]
[338453268,1726647804481,1336.57,0.00022999,60]
[338453269,1726647804623,1580.19,0.00022999,60]
[338453270,1726647804676,500.0,0.00022999,60]
[338453271,1726647806211,500.0,0.00022999,60]
[338453272,1726647806345,500.0,0.00022999,60]
[338453273,1726647808541,788.48,0.00022999,60]
[338453274,1726647809024,608.79,0.00022999,60]
[338453275,1726647809385,896.19,0.00022999,60]
[338453276,1726647810765,1132.27,0.00022999,60]
[338453277,1726647811466,500.0,0.00022999,60]
[338453278,1726647814428,15384.87,0.00022999,60]
[338453279,1726647814646,500.0,0.00022999,60]
[338453280,1726647814742,500.0,0.00022999,60]
[338453281,1726647815097,881.19,0.00022999,60]
[338453282,1726647816091,1773.6,0.00022999,60]